bitfinex-derivatives/quotes_BTCF0:USTF0_20251109
["timestamp","ask_amount","ask_price","bid_price","bid_amount"]
[1762655858718,0.2844012,101900.0,101890.0,0.1424175]
[1762655858901,0.2864012,101900.0,101890.0,0.1424175]
[1762655859811,0.06103,101900.0,101890.0,0.5032175]
[1762655860010,0.1591979,101900.0,101890.0,0.6304208]
[1762655865811,0.04739,101900.0,101890.0,0.6411208]
[1762655866410,0.1455579,101900.0,101890.0,0.5987254]
[1762655868119,0.04739,101900.0,101890.0,0.5987254]
[1762655868321,0.1455579,101900.0,101890.0,0.5987254]
[1762655868721,0.1588679,101900.0,101890.0,0.5987254]
[1762655869232,0.1588679,101900.0,101890.0,0.5139175]
[1762655870018,0.0607,101900.0,101890.0,0.5139175]
[1762655870926,0.0607,101900.0,101890.0,0.5987254]
[1762655872018,0.1588679,101900.0,101890.0,0.5032175]
[1762655872423,0.0607,101900.0,101890.0,0.5032175]
[1762655873416,0.0607,101900.0,101890.0,0.5139175]
[1762655874024,0.0607,101900.0,101890.0,0.5987254]
[1762655875726,0.07094444,101900.0,101890.0,0.5987254]
[1762655875921,0.02655444,101900.0,101890.0,0.5987254]
[1762655876126,0.02655444,101900.0,101890.0,0.6835333]
[1762655876318,0.00014702,101910.0,101900.0,0.1551179]
[1762655876519,0.00014702,101910.0,101900.0,0.3247337]
[1762655876724,0.00014702,101910.0,101900.0,1.0463337]
[1762655877025,0.00014702,101910.0,101900.0,1.1946337]
[1762655877424,0.00314702,101910.0,101900.0,1.1946337]
[1762655878829,0.00614702,101910.0,101900.0,1.1946337]
[1762655879526,0.00014702,101910.0,101900.0,1.1946337]
[1762655879829,0.00114702,101910.0,101900.0,1.2006337]
[1762655880029,0.00114702,101910.0,101900.0,1.1158258]
[1762655880619,0.04496702,101910.0,101900.0,1.1158258]
[1762655889623,0.14312532,101910.0,101900.0,1.1158258]
[1762655889821,0.04496702,101910.0,101900.0,1.0310179]
[1762655892422,0.10777499,101910.0,101900.0,1.0310179]
[1762655892622,0.12969499,101910.0,101900.0,1.0310179]
[1762655893823,0.03153679,101910.0,101900.0,1.0310179]
[1762655894236,0.12969509,101910.0,101900.0,1.0310179]
[1762655895330,0.22422299,101910.0,101900.0,0.57205]
[1762655895536,0.22422299,101910.0,101900.0,0.21125]
[1762655895836,0.22422299,101910.0,101900.0,0.42375]
[1762655896036,0.24775188,101910.0,101900.0,0.41097]
[1762655896425,0.24775188,101910.0,101900.0,0.05017]
[1762655896620,0.60855188,101910.0,101900.0,0.05017]
[1762655896834,0.60855188,101910.0,101900.0,0.006]
[1762655897233,0.60855188,101910.0,101900.0,0.02725]
[1762655897835,0.60855188,101910.0,101900.0,0.05017]
[1762655899341,0.52374398,101910.0,101900.0,0.148338]
[1762655899632,0.24775188,101910.0,101900.0,0.148338]
[1762655899938,0.60855188,101910.0,101900.0,0.05017]
[1762655903942,0.60855188,101910.0,101900.0,0.006]
[1762655904238,0.60855188,101910.0,101900.0,0.02725]
[1762655904942,0.60855188,101910.0,101900.0,0.05017]
[1762655908537,0.60855188,101910.0,101900.0,0.006]
[1762655908736,0.58502299,101910.0,101900.0,0.006]
[1762655908937,0.60855413,101910.0,101900.0,0.006]
[1762655909132,0.64373967,101910.0,101900.0,0.006]
[1762655911936,0.1506976,101890.0,101880.0,0.19280702]
[1762655912137,0.2355055,101890.0,101880.0,0.04450702]
[1762655912339,0.1506976,101890.0,101880.0,0.14269422]
[1762655912644,0.1506976,101890.0,101880.0,0.15544422]
[1762655913058,0.1506976,101890.0,101880.0,0.51624422]
[1762655913346,0.04576,101890.0,101880.0,0.52324422]
[1762655913541,0.02265,101890.0,101880.0,0.52324422]
[1762655913730,0.04576,101890.0,101880.0,0.52724422]
[1762655913935,0.04576,101890.0,101880.0,0.69686002]
[1762655913936,0.001,101890.0,101880.0,0.69686002]
[1762655914146,0.001,101890.0,101880.0,0.61205212]
[1762655914337,0.14307532,101900.0,101890.0,0.1552876]
[1762655914537,0.16667124,101900.0,101890.0,0.5160876]
[1762655915736,0.06850294,101900.0,101890.0,0.5160876]
[1762655916343,0.06850294,101900.0,101890.0,0.5180876]
[1762655916849,0.06850294,101900.0,101890.0,0.5190876]
[1762655917647,0.16667084,101900.0,101890.0,0.5190876]
[1762655918141,0.06850294,101900.0,101890.0,0.5190876]
[1762655918337,0.16667084,101900.0,101890.0,0.5190876]
[1762655918848,0.16667084,101900.0,101890.0,0.1582875]
[1762655919151,0.16667084,101900.0,101890.0,0.5190875]
[1762655919845,0.16667084,101900.0,101890.0,0.1582875]
[1762655920744,0.54088084,101900.0,101890.0,0.06011]
[1762655921642,0.18008084,101900.0,101890.0,0.06011]
[1762655921844,0.54088084,101900.0,101890.0,0.1582876]
[1762655922146,0.54088084,101900.0,101890.0,0.06011]
[1762655923249,0.62568874,101900.0,101890.0,0.02457]
[1762655923747,0.62568874,101900.0,101890.0,0.04736]
[1762655924348,0.66087428,101900.0,101890.0,0.1455376]
[1762655925042,0.57606638,101900.0,101890.0,0.1455375]
[1762655925242,0.66087428,101900.0,101890.0,0.1455375]
[1762655925444,0.66087428,101900.0,101890.0,0.04736]
[1762655925653,0.62568874,101900.0,101890.0,0.04736]
[1762655925840,0.62568874,101900.0,101890.0,0.1455375]
[1762655926350,0.62568874,101900.0,101890.0,0.04736]
[1762655928556,0.79542358,101900.0,101890.0,0.04736]
[1762655929356,0.79542358,101900.0,101890.0,0.1455375]
[1762655929655,0.83060912,101900.0,101890.0,0.1455375]
[1762655929858,0.83060912,101900.0,101890.0,0.003]
[1762655933748,0.1530375,101890.0,101880.0,0.00014702]
[1762655933948,0.66470479,101890.0,101880.0,0.00014702]
[1762655934251,0.79197616,101890.0,101880.0,0.00014702]
[1762655934448,0.66470479,101890.0,101880.0,0.00014702]
[1762655934654,0.8271617,101890.0,101880.0,0.00014702]
[1762655934855,0.83703093,101890.0,101880.0,0.00014702]
[1762655935054,0.89094956,101890.0,101880.0,0.00314702]
[1762655935253,0.83803093,101890.0,101880.0,0.00314702]
[1762655935641,0.83903093,101890.0,101880.0,0.00014702]
[1762655935846,0.89194956,101890.0,101880.0,0.00014702]
[1762655936242,0.88994956,101890.0,101880.0,0.00014702]
[1762655936446,0.89294956,101890.0,101880.0,0.00314702]
[1762655936856,0.1477771,101880.0,101870.0,0.0001197]
[1762655937057,0.78671576,101880.0,101870.0,0.0001197]
[1762655937358,0.8219013,101880.0,101870.0,0.0001197]
[1762655937762,0.8219013,101880.0,101870.0,0.0221997]
[1762655938144,0.8269013,101880.0,101870.0,0.0460197]
[1762655938349,0.79171576,101880.0,101870.0,0.0231997]
[1762655938554,0.79171576,101880.0,101870.0,0.0011197]
[1762655938952,0.79171576,101880.0,101870.0,0.0231997]
[1762655939356,0.79171576,101880.0,101870.0,0.0011197]
[1762655939857,0.79171576,101880.0,101870.0,0.0460197]
[1762655940452,0.79171576,101880.0,101870.0,0.0011197]
[1762655941771,0.79170928,101880.0,101870.0,0.0011197]
[1762655943665,0.82689482,101880.0,101870.0,0.0011197]
[1762655946263,0.97490912,101880.0,101870.0,0.0011197]
[1762655946764,0.72036638,101880.0,101870.0,1e-08]
[1762655946958,0.97490912,101880.0,101870.0,1e-08]
[1762655947757,0.97499808,101880.0,101870.0,1e-08]
[1762655953966,1.02791671,101880.0,101870.0,1e-08]
[1762655955366,0.77337397,101880.0,101870.0,1e-08]
[1762655955568,0.98350671,101880.0,101870.0,1e-08]
[1762655956468,1.11077808,101880.0,101870.0,1e-08]
[1762655956664,0.0981968,101870.0,101860.0,0.00014702]
[1762655956863,0.38319718,101870.0,101860.0,0.00014702]
[1762655957064,0.54020624,101870.0,101860.0,0.00014702]
[1762655957366,0.64210171,101870.0,101860.0,0.00014702]
[1762655957766,0.64210171,101870.0,101860.0,0.04504702]
[1762655957963,0.64310171,101870.0,101860.0,0.04504702]
[1762655958163,0.64310171,101870.0,101860.0,0.02222702]
[1762655958365,0.67828725,101870.0,101860.0,0.02222702]
[1762655958870,0.67828725,101870.0,101860.0,0.02322702]
[1762655959066,0.68028725,101870.0,101860.0,0.02322702]
[1762655959466,0.68028725,101870.0,101860.0,0.00114702]
[1762655960466,0.98171548,101870.0,101860.0,0.00114702]
[1762655961365,0.94652994,101870.0,101860.0,0.00114702]
[1762655962172,0.98167953,101870.0,101860.0,0.00114702]
[1762655962359,0.1558361,101850.0,101840.0,0.02208]
[1762655962671,0.1558361,101850.0,101840.0,0.0449]
[1762655962672,0.83806304,101850.0,101840.0,0.0449]
[1762655962872,1.03817461,101850.0,101840.0,0.0449]
[1762655963076,1.03817461,101850.0,101840.0,0.02208]
[1762655963370,1.03817461,101850.0,101830.0,0.1117777]
[1762655963371,0.1532557,101840.0,101830.0,0.05859702]
[1762655963571,0.63654061,101840.0,101830.0,0.15683242]
[1762655964177,0.43941944,101840.0,101830.0,0.15683242]
[1762655964366,0.16989491,101840.0,101830.0,0.15683242]
[1762655964962,0.74402608,101840.0,101830.0,0.04504702]
[1762655965166,0.64213061,101840.0,101830.0,0.04504702]
[1762655965461,0.64213061,101840.0,101830.0,0.05870702]
[1762655965774,0.28133061,101840.0,101830.0,0.15694242]
[1762655966074,0.17089491,101840.0,101830.0,0.15894242]
[1762655966273,0.17089491,101840.0,101830.0,0.16094242]
[1762655966768,0.17089491,101840.0,101830.0,0.15994242]
[1762655967072,0.17089491,101840.0,101830.0,0.15794242]
[1762655967276,0.26912061,101840.0,101830.0,0.15894242]
[1762655969074,0.26912061,101840.0,101830.0,0.06070702]
[1762655969380,0.52802514,101840.0,101830.0,0.15894242]
[1762655969673,0.62992061,101840.0,101830.0,0.15894242]
[1762655971776,0.17089491,101840.0,101830.0,0.15894242]
[1762655971966,0.26912061,101840.0,101830.0,0.15894242]
[1762655972372,0.26912061,101840.0,101830.0,0.06070702]
[1762655972574,0.27198061,101840.0,101830.0,0.06070702]
[1762655972975,0.37387608,101840.0,101830.0,0.06070702]
[1762655973480,0.37387608,101840.0,101830.0,0.04704702]
[1762655973775,0.73467608,101840.0,101830.0,0.04704702]
[1762655974580,0.73467608,101840.0,101830.0,0.14528242]
[1762655975876,0.53088514,101840.0,101830.0,0.15894242]
[1762655976376,0.73467608,101840.0,101830.0,0.15894242]
[1762655977871,0.73467608,101840.0,101830.0,0.04704702]
[1762655979581,0.73467608,101840.0,101830.0,0.14528242]
[1762655979786,0.43265944,101840.0,101830.0,0.15894242]
[1762655979986,0.63278061,101840.0,101830.0,0.04704702]
[1762655981183,0.73467608,101840.0,101830.0,0.04704702]
[1762655982471,0.73467608,101840.0,101830.0,0.14528242]
[1762655982671,0.73467608,101840.0,101830.0,0.04704702]
[1762655984278,0.73467608,101840.0,101830.0,0.02422702]
[1762655985175,0.73467608,101840.0,101830.0,0.04561702]
[1762655987078,0.73467608,101840.0,101830.0,0.00214702]
[1762655987276,0.82274813,101840.0,101830.0,0.00214702]
[1762655988277,0.7698295,101840.0,101830.0,0.00214702]
[1762655988483,0.66800594,101840.0,101830.0,0.00214702]
[1762655988681,0.66900594,101840.0,101830.0,0.00214702]
[1762655988981,0.66900594,101840.0,101830.0,0.00114702]
[1762655990175,1.00732594,101840.0,101830.0,0.00114702]
[1762655992883,1.00732594,101840.0,101830.0,0.02252702]
[1762655994180,1.06024457,101840.0,101830.0,0.00114702]
[1762655998680,1.00732594,101840.0,101830.0,0.00114702]
[1762656000385,1.36812594,101840.0,101830.0,0.00114702]
[1762656000885,1.26615856,101840.0,101830.0,0.00114702]
[1762656001079,1.36812594,101840.0,101830.0,0.00114702]
[1762656003584,1.42104457,101840.0,101830.0,0.00114702]
[1762656007287,1.08272457,101840.0,101830.0,0.00114702]
[1762656007588,0.93158024,101840.0,101830.0,0.14452242]
[1762656007783,0.93158024,101840.0,101830.0,0.2594698]
[1762656007784,0.79159944,101840.0,101830.0,0.2594698]
[1762656007983,0.06999944,101840.0,101830.0,0.2594698]
[1762656008287,0.06999944,101840.0,101830.0,0.51830242]
[1762656008488,0.06999944,101840.0,101830.0,0.15750242]
[1762656008786,0.43079944,101840.0,101830.0,0.15750242]
[1762656008990,0.64365262,101840.0,101830.0,0.04628702]
[1762656010185,0.67880604,101840.0,101830.0,0.04628702]
[1762656011090,0.64365262,101840.0,101830.0,0.04628702]
[1762656011899,0.54542682,101840.0,101830.0,0.14452242]
[1762656012095,0.64365262,101840.0,101830.0,0.14452242]
[1762656012598,0.54542682,101840.0,101830.0,0.15750242]
[1762656012987,0.17196682,101840.0,101830.0,0.15750242]
[1762656013194,0.06999944,101840.0,101830.0,0.15750242]
[1762656013590,0.43079944,101840.0,101830.0,0.15750242]
[1762656013787,0.06999944,101840.0,101830.0,0.15750242]
[1762656014791,1.51999944,101840.0,101830.0,0.15750242]
[1762656015086,1.88079944,101840.0,101830.0,0.15750242]
[1762656015281,1.51999944,101840.0,101830.0,0.15750242]
[1762656018691,1.61822524,101840.0,101830.0,0.15750242]
[1762656018899,1.51999944,101840.0,101830.0,0.15750242]
[1762656019896,1.49641,101840.0,101830.0,0.15750242]
[1762656020191,1.52002918,101840.0,101830.0,0.15750242]
[1762656020500,1.52002918,101840.0,101830.0,0.51830242]
[1762656023302,1.52002918,101840.0,101830.0,0.15750242]
[1762656030025,1.52002918,101840.0,101830.0,0.51830242]
[1762656031619,1.49641,101840.0,101830.0,0.7685698]
[1762656034630,1.49641,101840.0,101830.0,0.84607926]
[1762656035127,1.49641,101840.0,101830.0,0.74411188]
[1762656036231,1.5201335,101840.0,101830.0,0.74411188]
[1762656036433,1.49641,101840.0,101830.0,0.74411188]
[1762656037236,1.52013408,101840.0,101830.0,0.74411188]
[1762656037535,1.49641,101840.0,101830.0,0.74411188]
[1762656037735,1.52013281,101840.0,101830.0,0.84607926]
[1762656037942,1.52013281,101840.0,101830.0,0.74411188]
[1762656041030,1.49641,101840.0,101830.0,0.74411188]
[1762656041637,1.49641,101840.0,101830.0,0.84607926]
[1762656042338,1.49641,101840.0,101830.0,0.74411188]
[1762656045436,1.49641,101840.0,101830.0,0.84607926]
[1762656045636,1.49641,101840.0,101830.0,0.74411188]
[1762656046232,1.53280733,101840.0,101830.0,0.37033188]
[1762656046539,1.73300051,101840.0,101830.0,0.37033188]
[1762656046741,2.09380051,101840.0,101830.0,0.37033188]
[1762656047241,1.99183313,101840.0,101830.0,0.22203188]
[1762656047543,1.99557471,101840.0,101830.0,0.22203188]
[1762656048035,1.53280733,101840.0,101830.0,0.22203188]
[1762656048233,1.89360733,101840.0,101830.0,0.22203188]
[1762656049633,1.99183323,101840.0,101830.0,0.22203188]
[1762656050531,2.09375816,101840.0,101830.0,0.22203188]
[1762656051741,2.19568309,101840.0,101830.0,0.07865648]
[1762656052738,2.19568309,101840.0,101830.0,0.17689208]
[1762656053641,2.19568309,101840.0,101830.0,0.22083208]
[1762656053836,2.19568309,101840.0,101830.0,0.17689208]
[1762656054042,2.09375816,101840.0,101830.0,0.17689208]
[1762656054543,2.19568309,101840.0,101830.0,0.17689208]
[1762656054744,2.19568309,101840.0,101830.0,0.09938262]
[1762656056236,2.09375816,101840.0,101830.0,0.09938262]
[1762656056743,2.19568309,101840.0,101830.0,0.09938262]
[1762656059353,2.19568309,101840.0,101830.0,0.14302262]
[1762656059561,2.19568309,101840.0,101830.0,0.09938262]
[1762656060435,1.99183323,101840.0,101830.0,0.14302262]
[1762656060745,2.09375816,101840.0,101830.0,0.14302262]
[1762656061448,1.99183323,101840.0,101830.0,0.14302262]
[1762656061647,2.09375816,101840.0,101830.0,0.14302262]
[1762656062939,1.99553226,101840.0,101830.0,0.14302262]
[1762656063139,1.52014733,101840.0,101830.0,0.25763755]
[1762656063342,1.62207226,101840.0,101830.0,0.25763755]
[1762656064037,1.52014733,101840.0,101830.0,0.25763755]
[1762656064848,1.62207226,101840.0,101830.0,0.25763755]
[1762656065752,1.52014733,101840.0,101830.0,0.25763755]
[1762656065949,1.52014733,101840.0,101830.0,0.61843755]
[1762656066143,1.49641,101840.0,101830.0,0.61843755]
[1762656068944,1.49641,101840.0,101830.0,0.69822567]
[1762656069151,1.49641,101840.0,101830.0,1.0456306]
[1762656069152,1.452,101840.0,101830.0,1.0456306]
[1762656069349,1.04796807,101840.0,101830.0,1.6456306]
[1762656070742,1.04796807,101840.0,101830.0,1.4001506]
[1762656070948,1.04796807,101840.0,101830.0,1.6456306]
[1762656071658,1.04796807,101840.0,101830.0,1.4001506]
[1762656071850,1.04796807,101840.0,101830.0,1.6456306]
[1762656073252,0.53713908,101840.0,101830.0,1.26457034]
[1762656074452,0.58095908,101840.0,101830.0,1.26457034]
[1762656074854,0.58095908,101840.0,101830.0,1.01909034]
[1762656075552,0.58095908,101840.0,101830.0,1.26457034]
[1762656076960,0.58095908,101840.0,101830.0,1.01909034]
[1762656077954,0.58095908,101840.0,101830.0,0.91716541]
[1762656078645,0.58095908,101840.0,101830.0,1.16264541]
[1762656078853,0.58095908,101840.0,101830.0,1.16364541]
[1762656079064,0.58195908,101840.0,101830.0,0.92016541]
[1762656079361,0.58195908,101840.0,101830.0,1.16564541]
[1762656079561,0.58195908,101840.0,101830.0,0.92016541]
[1762656080462,0.58195908,101840.0,101830.0,1.16564541]
[1762656080650,0.56072908,101840.0,101830.0,1.16564541]
[1762656080856,0.58195908,101840.0,101830.0,1.16564541]
[1762656081155,0.58195908,101840.0,101830.0,1.02209034]
[1762656081347,0.58195908,101840.0,101830.0,1.26757034]
[1762656081661,0.53813908,101840.0,101830.0,1.26757034]
[1762656081961,0.03002848,101840.0,101830.0,1.26757034]
[1762656082162,8e-08,101840.0,101830.0,1.26757034]
[1762656083562,8e-08,101840.0,101830.0,1.02209034]
[1762656083861,8e-08,101840.0,101830.0,1.26757034]
[1762656084766,8e-08,101840.0,101830.0,1.02209034]
[1762656084964,8e-08,101840.0,101830.0,1.26757034]
[1762656086254,8e-08,101840.0,101830.0,1.02209034]
[1762656086453,8e-08,101840.0,101830.0,1.26757034]
[1762656088055,0.04534008,101840.0,101830.0,1.26757034]
[1762656088261,0.04534008,101840.0,101830.0,0.92016541]
[1762656088561,0.04534008,101840.0,101830.0,1.02209034]
[1762656090360,0.04534008,101840.0,101830.0,1.26757034]
[1762656090760,8e-08,101840.0,101830.0,1.22393034]
[1762656096668,8e-08,101840.0,101830.0,0.97845034]
[1762656096872,8e-08,101840.0,101830.0,1.22393034]
[1762656097056,8e-08,101840.0,101830.0,0.97845034]
[1762656097367,8e-08,101840.0,101830.0,1.22393034]
[1762656099164,8e-08,101840.0,101830.0,0.97845034]
[1762656099364,8e-08,101840.0,101830.0,1.22393034]
[1762656101364,8e-08,101840.0,101830.0,1.1532906]
[1762656101765,8e-08,101840.0,101830.0,0.9078106]
[1762656101965,8e-08,101840.0,101830.0,1.1532906]
[1762656102170,8e-08,101840.0,101830.0,1.24160403]
[1762656102564,8e-08,101840.0,101830.0,0.99612403]
[1762656102959,8e-08,101840.0,101830.0,1.24160403]
[1762656103270,8e-08,101840.0,101830.0,0.99612403]
[1762656103465,8e-08,101840.0,101830.0,1.24160403]
[1762656104470,8e-08,101840.0,101830.0,1.60240403]
[1762656106165,8e-08,101840.0,101830.0,1.35692403]
[1762656106365,8e-08,101840.0,101830.0,1.60240403]
[1762656107367,8e-08,101840.0,101830.0,1.35692403]
[1762656108069,8e-08,101840.0,101830.0,1.2686106]
[1762656110183,0.04360008,101840.0,101830.0,1.23740341]
[1762656110378,0.04360008,101840.0,101830.0,1.13547848]
[1762656111384,0.04360008,101840.0,101830.0,1.06476074]
[1762656112977,0.04360008,101840.0,101830.0,1.16665835]
[1762656120491,8e-08,101840.0,101830.0,1.28383442]
[1762656122084,8e-08,101840.0,101830.0,1.52931442]
[1762656122787,8e-08,101840.0,101830.0,1.28383442]
[1762656122989,8e-08,101840.0,101830.0,1.52931442]
[1762656124079,8e-08,101840.0,101830.0,1.28383442]
[1762656124279,8e-08,101840.0,101830.0,1.21311668]
[1762656124479,8e-08,101840.0,101830.0,1.45859668]
[1762656125688,8e-08,101840.0,101830.0,2.00875668]
[1762656125887,8e-08,101840.0,101830.0,1.76327668]
[1762656129391,8e-08,101840.0,101830.0,1.83399442]
[1762656132790,8e-08,101840.0,101830.0,1.28383442]
[1762656138991,0.00010018,101850.0,101840.0,0.05778]
[1762656138992,2.6e-07,101850.0,101840.0,0.05778]
[1762656139191,2.6e-07,101850.0,101840.0,0.79123688]
[1762656139694,2.6e-07,101850.0,101840.0,0.68933927]
[1762656140391,0.04620026,101850.0,101840.0,0.68933927]
[1762656140998,0.04620026,101850.0,101840.0,0.83763927]
[1762656141193,0.04620026,101850.0,101840.0,0.83863927]
[1762656141392,0.02406026,101850.0,101840.0,0.83863927]
[1762656141590,0.00100026,101850.0,101840.0,0.83863927]
[1762656142897,0.00100026,101850.0,101840.0,0.84851146]
[1762656143197,0.00100026,101850.0,101840.0,0.83863927]
[1762656148306,2.6e-07,101850.0,101840.0,0.79327927]
[1762656148498,0.00100026,101850.0,101840.0,0.84035927]
[1762656152296,0.04543026,101850.0,101840.0,0.84035927]
[1762656152995,0.02224026,101850.0,101840.0,0.84035927]
[1762656154302,0.00100026,101850.0,101840.0,0.84035927]
[1762656158506,0.00014702,101860.0,101850.0,0.1554166]
[1762656158811,0.00014702,101860.0,101850.0,0.72001182]
[1762656159613,0.00014702,101860.0,101850.0,0.93894708]
[1762656161192,0.00114702,101860.0,101850.0,0.93994708]
[1762656161706,0.00114702,101860.0,101850.0,0.94094708]
[1762656162205,0.00114702,101860.0,101850.0,0.94194708]
[1762656166913,0.41667,101890.0,101880.0,0.1434177]
[1762656167105,0.44005513,101890.0,101880.0,0.1434177]
[1762656167606,0.53823323,101890.0,101880.0,0.04523]
[1762656168006,0.53823323,101890.0,101880.0,0.02286]
[1762656168307,0.54123323,101890.0,101880.0,0.02386]
[1762656168613,0.54123323,101890.0,101880.0,0.1220477]
[1762656169016,0.54423323,101890.0,101880.0,0.1220477]
[1762656169205,0.54423323,101890.0,101880.0,0.1444177]
[1762656170916,0.64613084,101890.0,101880.0,0.0991877]
[1762656172308,0.64606996,101890.0,101880.0,0.0991877]
[1762656180421,0.64606996,101890.0,101880.0,0.001]
[1762656180616,0.1560277,101880.0,101870.0,0.14844702]
[1762656180920,0.77903971,101880.0,101870.0,0.14844702]
[1762656181416,0.77903971,101880.0,101870.0,0.24664432]
[1762656181812,0.78003971,101880.0,101870.0,0.24664432]
[1762656182011,0.78103971,101880.0,101870.0,0.14391432]
[1762656182318,0.78103971,101880.0,101870.0,0.12151432]
[1762656182519,0.78103971,101880.0,101870.0,0.09834432]
[1762656182707,0.83395834,101880.0,101870.0,0.00014702]
[1762656184219,0.83595834,101880.0,101870.0,0.00114702]
[1762656184613,0.83495834,101880.0,101870.0,0.00114702]
[1762656184813,0.155947,101860.0,101850.0,0.1213792]
[1762656185117,0.64196886,101860.0,101850.0,0.1213792]
[1762656186211,0.64196886,101860.0,101850.0,0.1437792]
[1762656187724,0.64396886,101860.0,101850.0,0.0992092]
[1762656187925,0.64496886,101860.0,101850.0,0.1223792]
[1762656188125,0.44492513,101860.0,101850.0,0.1574992]
[1762656188425,0.08412513,101860.0,101850.0,0.5182992]
[1762656189315,0.18596186,101860.0,101850.0,0.5182992]
[1762656189525,0.16951213,101860.0,101850.0,0.5182992]
[1762656189821,0.07130513,101860.0,101850.0,0.5182992]
[1762656190716,0.04792,101860.0,101850.0,0.62013593]
[1762656191314,0.07135142,101860.0,101850.0,0.62013593]
[1762656191514,0.003,101860.0,101850.0,0.62013593]
[1762656193426,0.003,101860.0,101850.0,0.72197266]
[1762656193920,0.003,101860.0,101850.0,1.32197266]
[1762656194120,0.00014702,101870.0,101860.0,0.1564971]
[1762656194326,0.00014702,101870.0,101860.0,0.72097056]
[1762656194628,0.00014702,101870.0,101860.0,0.86927056]
[1762656195322,0.00014702,101870.0,101860.0,0.72197056]
[1762656195519,0.00414702,101870.0,101860.0,0.72197056]
[1762656196022,0.00414702,101870.0,101860.0,0.5182971]
[1762656196230,0.41850342,101910.0,101900.0,0.05829]
[1762656196418,0.05859097,101910.0,101900.0,0.36013196]
[1762656196614,0.21016952,101930.0,101900.0,0.46196869]
[1762656196815,0.25508952,101930.0,101920.0,0.1564392]
[1762656197216,0.38855786,101930.0,101920.0,0.04557]
[1762656197417,0.26214952,101930.0,101920.0,0.24555593]
[1762656197624,0.26214952,101930.0,101920.0,0.04557]
[1762656197824,0.26514952,101930.0,101920.0,0.04557]
[1762656198024,0.36698625,101930.0,101920.0,0.40637]
[1762656198223,0.26614952,101930.0,101920.0,0.40637]
[1762656198422,0.36798625,101930.0,101920.0,0.60635593]
[1762656198745,0.36798625,101930.0,101920.0,0.5045192]
[1762656198921,0.36598625,101930.0,101920.0,0.5045192]
[1762656200022,0.72678625,101930.0,101920.0,0.04557]
[1762656200920,0.05784,101920.0,101910.0,0.59488358]
[1762656201118,0.52047673,101920.0,101910.0,0.17579358]
[1762656201322,0.61862593,101920.0,101910.0,0.10080488]
[1762656201521,0.72046266,101920.0,101910.0,0.00014702]
[1762656201920,0.05769,101900.0,101890.0,0.1437432]
[1762656202121,0.05569,101900.0,101890.0,0.2236728]
[1762656202515,0.05569,101900.0,101890.0,0.5844728]
[1762656202722,0.05569,101900.0,101890.0,0.69902953]
[1762656204018,0.05769,101900.0,101890.0,0.69902953]
[1762656204331,0.05969,101900.0,101890.0,0.69902953]
[1762656207531,0.04692,101900.0,101890.0,0.69902953]
[1762656211930,0.25709513,101900.0,101890.0,0.1254996]
[1762656212151,0.742179,101900.0,101890.0,0.0799296]
[1762656212326,0.1555581,101890.0,101880.0,0.14365172]
[1762656212530,0.25739483,101890.0,101880.0,0.14365172]
[1762656212932,0.61819483,101890.0,101880.0,0.14365172]
[1762656213435,0.61919483,101890.0,101880.0,0.14365172]
[1762656213829,0.64264551,101890.0,101880.0,0.00014702]
[1762656214426,1.24264551,101890.0,101880.0,0.00014702]
[1762656215836,0.1489573,101870.0,101860.0,0.1435204]
[1762656216131,0.61159403,101870.0,101860.0,0.143527]
[1762656216927,0.61259403,101870.0,101860.0,0.146527]
[1762656217138,0.61259403,101870.0,101860.0,0.147527]
[1762656225142,0.61259403,101870.0,101860.0,0.160277]
[1762656226445,0.61259403,101870.0,101860.0,0.147527]
[1762656226635,0.61259403,101870.0,101860.0,0.02618]
[1762656226836,0.61259403,101870.0,101860.0,0.004]
[1762656227338,0.61259403,101870.0,101860.0,0.0254]
[1762656227938,0.61259403,101870.0,101860.0,0.146797]
[1762656228947,0.61259403,101870.0,101860.0,0.0254]
[1762656229440,0.61259403,101870.0,101860.0,0.04859]
[1762656230353,0.63497921,101870.0,101860.0,0.0254]
[1762656230553,0.63497921,101870.0,101860.0,0.123607]
[1762656232247,0.63497921,101870.0,101860.0,0.004]
[1762656232450,0.73681594,101870.0,101860.0,0.004]
[1762656232648,0.78197939,101870.0,101860.0,0.004]
[1762656233049,0.1503467,101850.0,101840.0,0.22123053]
[1762656233244,0.61298343,101850.0,101840.0,0.12301103]
[1762656233445,0.61298343,101850.0,101840.0,0.04459]
[1762656233648,0.97378343,101850.0,101840.0,0.04459]
[1762656233845,0.99617697,101850.0,101840.0,0.04459]
[1762656234354,0.89434024,101850.0,101840.0,0.04459]
[1762656235240,0.89534024,101850.0,101840.0,0.0264]
[1762656235446,0.99725241,101850.0,101840.0,0.0264]
[1762656235848,0.99625241,101850.0,101840.0,0.0264]
[1762656236353,0.99625241,101850.0,101840.0,0.005]
[1762656236548,0.99625241,101850.0,101840.0,0.001]
[1762656238656,0.1518859,101830.0,101820.0,0.1425274]
[1762656238952,0.5126859,101830.0,101820.0,0.1425355]
[1762656240062,0.5136859,101830.0,101820.0,0.1465355]
[1762656240351,0.5136859,101830.0,101820.0,0.1485355]
[1762656240756,0.61559807,101830.0,101820.0,0.05029]
[1762656241156,0.61559807,101830.0,101820.0,0.1485355]
[1762656241453,0.53610329,101830.0,101820.0,0.1485355]
[1762656241657,0.53610329,101830.0,101820.0,0.1619555]
[1762656241952,0.06659739,101830.0,101820.0,0.1559555]
[1762656242152,0.16483319,101830.0,101820.0,0.1559555]
[1762656242852,0.16483329,101830.0,101820.0,0.1559555]
[1762656243355,0.06659739,101830.0,101820.0,0.1559555]
[1762656243551,0.06659739,101830.0,101820.0,0.61866767]
[1762656244258,0.16483329,101830.0,101820.0,0.5167555]
[1762656244558,0.06701974,101830.0,101820.0,0.61866767]
[1762656244945,0.04532974,101830.0,101820.0,0.61866767]
[1762656245143,0.02383974,101830.0,101820.0,0.61866767]
[1762656245347,0.04532974,101830.0,101820.0,0.61866767]
[1762656245547,0.06701974,101830.0,101820.0,0.61866767]
[1762656245747,0.04532974,101830.0,101820.0,0.61866767]
[1762656245948,0.02249,101830.0,101820.0,0.61866767]
[1762656246462,0.1424159,101830.0,101820.0,0.61866767]
[1762656246665,0.1424159,101830.0,101820.0,0.76696767]
[1762656247275,0.1424159,101830.0,101820.0,0.6650555]
[1762656248455,0.53995673,101830.0,101820.0,0.19259]
[1762656248661,0.6418689,101830.0,101820.0,0.19259]
[1762656248860,0.16525673,101830.0,101820.0,0.3042556]
[1762656249159,0.52605673,101830.0,101820.0,0.3042556]
[1762656250265,0.52605673,101830.0,101820.0,0.20601]
[1762656251154,0.52605673,101830.0,101820.0,0.3042555]
[1762656251460,0.16525673,101830.0,101820.0,0.3042555]
[1762656251956,0.06702083,101830.0,101820.0,0.3042555]
[1762656252351,0.16525673,101830.0,101820.0,0.3042555]
[1762656252662,0.16525673,101830.0,101820.0,0.1559555]